fUST/lending_fUST_20241028
["ID","MTS","AMOUNT","RATE_DAILY","PERIOD"]
[340933893,1730129452276,-4461.47,0.00026027,4]
[340933894,1730129452286,-620.97,0.00026027,4]
[340933895,1730129452296,-500.0,0.00026027,4]
[340933896,1730129452308,-500.0,0.00026027,4]
[340933897,1730129452318,-500.0,0.00026027,4]
[340933898,1730129452329,-1799.72,0.00026027,4]
[340933899,1730129452338,-530.25,0.00026027,4]
[340933900,1730129452348,-500.0,0.00026027,4]
[340933901,1730129452359,-878.91,0.00026027,4]
[340933902,1730129452371,-500.0,0.00026027,4]
[340933903,1730129452383,-742.22,0.00026027,4]
[340933904,1730129452394,-500.0,0.00026027,4]
[340933905,1730129452630,-500.0,0.00026027,4]
[340933906,1730129452649,-769.44,0.00026027,4]
[340933907,1730129452664,-500.0,0.00026027,4]
[340933908,1730129452674,-500.0,0.00026027,4]
[340933909,1730129452684,-500.0,0.00026027,4]
[340933910,1730129452694,-500.0,0.00026027,4]
[340933911,1730129452703,-1927.27,0.00026027,4]
[340933912,1730129452713,-624.33,0.00026027,4]
[340933913,1730129452722,-819.93,0.00026027,4]
[340933914,1730129452732,-1497.68,0.00026027,4]
[340933915,1730129452742,-500.0,0.00026027,4]
[340933916,1730129452752,-1026.37,0.00026027,4]
[340933917,1730129452763,-500.0,0.00026027,4]
[340933918,1730129452774,-2868.93,0.00026027,4]
[340933919,1730129452784,-66.77264549,0.00026027,4]
[340933920,1730129452800,-694.98735451,0.00026027,4]
[340933921,1730129452811,-738.76,0.00026027,4]
[340933922,1730129452822,-683.67,0.00026027,4]
[340933923,1730129452835,-500.0,0.00026027,4]
[340933924,1730129452845,-786.95,0.00026027,4]
[340933925,1730129452856,-6316.7,0.00026027,4]
[340933926,1730129452868,-1284.43,0.00026027,4]
[340933927,1730129452879,-500.0,0.00026027,4]
[340933928,1730129452889,-650.23,0.00026027,4]
[340933929,1730129452899,-3145.16,0.00026027,4]
[340933930,1730129452913,-1227.62,0.00026027,4]
[340933931,1730129452922,-1884.49,0.00026027,4]
[340933932,1730129452931,-601.67,0.00026027,4]
[340933933,1730129452940,-1727.69,0.00026027,4]
[340933934,1730129452951,-500.0,0.00026027,4]
[340933935,1730129452960,-1046.1,0.00026027,4]
[340933936,1730129452970,-500.0,0.00026027,4]
[340933937,1730129452981,-1689.97,0.00026027,4]
[340933938,1730129452990,-778.9,0.00026027,4]
[340933939,1730129453000,-652.89,0.00026027,4]
[340933940,1730129453010,-1030.36,0.00026027,4]
[340933941,1730129453020,-1456.12,0.00026027,4]
[340933942,1730129453031,-1629.02,0.00026027,4]
[340933943,1730129453041,-500.0,0.00026027,4]
[340933944,1730129453051,-500.0,0.00026027,4]
[340933945,1730129453061,-500.0,0.00026027,4]
[340933946,1730129453070,-500.0,0.00026027,4]
[340933947,1730129453080,-1204.2,0.00026027,4]
[340933948,1730129453090,-1554.92,0.00026027,4]
[340933949,1730129453099,-507.55,0.00026027,4]
[340933950,1730129453111,-500.0,0.00026027,4]
[340933951,1730129453122,-500.0,0.00026027,4]
[340933952,1730129453132,-500.0,0.00026027,4]
[340933953,1730129453142,-925.28,0.00026027,4]
[340933954,1730129453153,-610.14,0.00026027,4]
[340933955,1730129453163,-503.70856524,0.00026042,2]
[340933956,1730129453172,-1000.0,0.00026042,2]
[340933957,1730129453181,-1000.0,0.00026042,2]
[340933958,1730129453190,-1000.0,0.00026042,2]
[340933959,1730129453201,-1000.0,0.00026042,2]
[340933960,1730129453211,-151.0,0.00026133,2]
[340933961,1730129453221,-587.0,0.00026262,2]
[340933962,1730129453231,-500.0,0.00026301,4]
[340933963,1730129453243,-500.0,0.00026301,4]
[340933964,1730129453253,-500.0,0.00026301,4]
[340933965,1730129453263,-1140.24,0.00026301,4]
[340933966,1730129453274,-500.0,0.00026301,4]
[340933967,1730129453284,-500.0,0.00026301,4]
[340933968,1730129453295,-500.0,0.00026301,4]
[340933969,1730129453307,-500.0,0.00026301,4]
[340933970,1730129453319,-749.87,0.00026301,4]
[340933971,1730129453330,-500.0,0.00026301,4]
[340933972,1730129453340,-500.0,0.00026301,4]
[340933973,1730129453350,-543.99,0.00026301,4]
[340933974,1730129453359,-200.0,0.00026301,4]
[340933975,1730129453370,-760.29,0.00026301,4]
[340933976,1730129453384,-500.0,0.00026301,4]
[340933977,1730129453394,-500.0,0.00026301,4]
[340933978,1730129453404,-1004.66,0.00026301,4]
[340933979,1730129453415,-500.0,0.00026301,4]
[340933980,1730129453427,-1133.69,0.00026301,4]
[340933981,1730129453437,-591.96,0.00026301,4]
[340933982,1730129453447,-711.78,0.00026301,4]
[340933983,1730129453457,-578.82,0.00026301,4]
[340933984,1730129453467,-500.0,0.00026301,4]
[340933985,1730129453477,-722.74,0.00026301,4]
[340933986,1730129453488,-955.43,0.00026301,4]
[340933987,1730129453498,-524.69,0.00026301,4]
[340933988,1730129453509,-204.35514259,0.00026301,4]
[340933989,1730129453519,-500.0,0.00026301,4]
[340933990,1730129453529,-855.76,0.00026301,4]
[340933991,1730129453539,-890.47,0.00026301,4]
[340933992,1730129453548,-500.0,0.00026301,4]
[340933993,1730129453558,-566.57,0.00026301,4]
[340933994,1730129453568,-633.26,0.00026301,4]
[340933995,1730129453578,-1975.47,0.00026301,4]
[340933996,1730129453588,-500.0,0.00026301,4]
[340933997,1730129453598,-1713.77,0.00026301,4]
[340933998,1730129453608,-729.11,0.00026301,4]
[340933999,1730129453620,-500.0,0.00026301,4]
[340934000,1730129453630,-500.0,0.00026301,4]
[340934001,1730129453639,-963.09,0.00026301,4]
[340934002,1730129453648,-500.0,0.00026301,4]
[340934003,1730129453657,-500.0,0.00026301,4]
[340934004,1730129453667,-500.0,0.00026301,4]
[340934005,1730129453677,-500.0,0.00026301,4]
[340934006,1730129453687,-500.0,0.00026301,4]
[340934007,1730129453698,-500.0,0.00026301,4]
[340934008,1730129453708,-500.0,0.00026301,4]
[340934009,1730129453718,-507.73435295,0.00026301,4]
[340934010,1730129453727,-608.05,0.00026301,4]
[340934011,1730129453737,-500.0,0.00026301,4]
[340934012,1730129453747,-823.3,0.00026301,4]
[340934013,1730129453757,-500.0,0.00026301,4]
[340934014,1730129453768,-500.0,0.00026301,4]
[340934015,1730129453781,-500.0,0.00026301,4]
[340934016,1730129453791,-755.88,0.00026301,4]
[340934017,1730129453801,-539.85,0.00026301,4]
[340934018,1730129453812,-500.0,0.00026301,4]
[340934019,1730129453822,-500.0,0.00026301,4]
[340934020,1730129453833,-626.47,0.00026301,4]
[340934021,1730129453844,-500.0,0.00026301,4]
[340934022,1730129453855,-500.0,0.00026301,4]
[340934023,1730129453865,-514.34,0.00026301,4]
[340934024,1730129453875,-500.0,0.00026301,4]
[340934025,1730129453885,-500.0,0.00026301,4]
[340934026,1730129453895,-500.0,0.00026301,4]
[340934027,1730129453907,-598.19,0.00026301,4]
[340934028,1730129453917,-500.0,0.00026301,4]
[340934029,1730129453926,-1067.13,0.00026301,4]
[340934030,1730129453935,-500.0,0.00026301,4]
[340934031,1730129453945,-843.82,0.00026301,4]
[340934032,1730129453956,-1143.48,0.00026301,4]
[340934033,1730129453966,-1025.09,0.00026301,4]
[340934034,1730129453976,-563.24013755,0.00026301,4]
[340934035,1730129453989,-561.61,0.00026301,4]
[340934036,1730129453999,-527.41,0.00026301,4]
[340934037,1730129454010,-500.0,0.00026301,4]
[340934038,1730129454020,-500.0,0.00026301,4]
[340934039,1730129454030,-710.98,0.00026301,4]
[340934040,1730129454039,-500.0,0.00026301,4]
[340934041,1730129454049,-3382.1,0.00026301,4]
[340934042,1730129454058,-500.0,0.00026301,4]
[340934043,1730129454069,-500.0,0.00026301,4]
[340934044,1730129454080,-644.42,0.00026301,4]
[340934045,1730129454091,-1268.24,0.00026301,4]
[340934046,1730129454102,-500.0,0.00026301,4]
[340934047,1730129454112,-975.81,0.00026301,4]
[340934048,1730129454123,-500.0,0.00026301,4]
[340934049,1730129454132,-500.0,0.00026301,4]
[340934050,1730129454142,-1017.35,0.00026301,4]
[340934051,1730129454152,-620.42,0.00026301,4]
[340934052,1730129454164,-500.0,0.00026301,4]
[340934053,1730129454177,-576.34,0.00026301,4]
[340934054,1730129454187,-1089.8,0.00026301,4]
[340934055,1730129454196,-500.0,0.00026301,4]
[340934056,1730129454205,-500.0,0.00026301,4]
[340934057,1730129454214,-1006.91,0.00026301,4]
[340934058,1730129454225,-523.23,0.00026301,4]
[340934059,1730129454237,-484.09210071,0.00026301,4]
[340934060,1730129454246,-500.0,0.00026301,4]
[340934061,1730129454256,-500.0,0.00026301,4]
[340934062,1730129454267,-4461.47,0.00026301,4]
[340934063,1730129454278,-500.0,0.00026301,4]
[340934064,1730129454292,-620.97,0.00026301,4]
[340934065,1730129454303,-500.0,0.00026301,4]
[340934066,1730129454313,-500.0,0.00026301,4]
[340934067,1730129454323,-1799.72,0.00026301,4]
[340934068,1730129454333,-530.25,0.00026301,4]
[340934069,1730129454343,-500.0,0.00026301,4]
[340934070,1730129454353,-878.91,0.00026301,4]
[340934071,1730129454363,-500.0,0.00026301,4]
[340934072,1730129454374,-742.22,0.00026301,4]
[340934073,1730129454383,-500.0,0.00026301,4]
[340934074,1730129454393,-500.0,0.00026301,4]
[340934075,1730129454404,-769.44,0.00026301,4]
[340934076,1730129454414,-500.0,0.00026301,4]
[340934077,1730129454425,-500.0,0.00026301,4]
[340934078,1730129454435,-500.0,0.00026301,4]
[340934079,1730129454444,-500.0,0.00026301,4]
[340934080,1730129454454,-1927.27,0.00026301,4]
[340934081,1730129454464,-624.33,0.00026301,4]
[340934082,1730129454473,-819.93,0.00026301,4]
[340934083,1730129454483,-1497.68,0.00026301,4]
[340934084,1730129454493,-500.0,0.00026301,4]
[340934085,1730129454504,-1026.37,0.00026301,4]
[340934086,1730129454514,-500.0,0.00026301,4]
[340934087,1730129454524,-2868.93,0.00026301,4]
[340934088,1730129454534,-761.76,0.00026301,4]
[340934089,1730129454544,-738.76,0.00026301,4]
[340934090,1730129454555,-683.67,0.00026301,4]
[340934091,1730129454566,-500.0,0.00026301,4]
[340934092,1730129454578,-786.95,0.00026301,4]
[340934093,1730129454588,-6316.7,0.00026301,4]
[340934094,1730129454599,-1284.43,0.00026301,4]
[340934095,1730129454610,-500.0,0.00026301,4]
[340934096,1730129454621,-650.23,0.00026301,4]
[340934097,1730129454631,-3145.16,0.00026301,4]
[340934098,1730129454641,-1227.62,0.00026301,4]
[340934099,1730129454652,-1884.49,0.00026301,4]
[340934100,1730129454661,-601.67,0.00026301,4]
[340934101,1730129454671,-1727.69,0.00026301,4]
[340934102,1730129454681,-500.0,0.00026301,4]
[340934103,1730129454691,-1046.1,0.00026301,4]
[340934104,1730129454700,-500.0,0.00026301,4]
[340934105,1730129454710,-778.9,0.00026301,4]
[340934106,1730129454720,-1689.97,0.00026301,4]
[340934107,1730129454730,-652.89,0.00026301,4]
[340934108,1730129454740,-1030.36,0.00026301,4]
[340934109,1730129454750,-1456.12,0.00026301,4]
[340934110,1730129454761,-1629.02,0.00026301,4]
[340934111,1730129454772,-500.0,0.00026301,4]
[340934112,1730129454782,-500.0,0.00026301,4]
[340934113,1730129454795,-500.0,0.00026301,4]
[340934114,1730129454805,-500.0,0.00026301,4]
[340934115,1730129454816,-1204.2,0.00026301,4]
[340934116,1730129454828,-1554.92,0.00026301,4]
[340934117,1730129454837,-507.55,0.00026301,4]
[340934118,1730129454847,-500.0,0.00026301,4]
[340934119,1730129454857,-500.0,0.00026301,4]
[340934120,1730129454867,-500.0,0.00026301,4]
[340934121,1730129454877,-925.28,0.00026301,4]
[340934122,1730129454887,-610.14,0.00026301,4]
[340934123,1730129454898,-1000.0,0.00026342,2]
[340934124,1730129454912,-197.711006,0.00026352,2]
[340934125,1730129454923,-206.740455,0.00026352,2]
[340934126,1730129454934,-1025.172425,0.00026352,2]
[340934127,1730129454944,-167.192241,0.00026352,2]
[340934128,1730129454956,-2269.241745,0.00026352,2]
[340934129,1730129454967,-205.125516,0.00026352,2]
[340934130,1730129454981,-500.0,0.0002636,2]
[340934131,1730129454990,-504.87770329,0.0002636,2]
[340934132,1730129455001,-500.0,0.0002636,2]
[340934133,1730129455010,-500.0,0.00026373,2]
[340934134,1730129455021,-500.0,0.00026373,2]
[340934135,1730129455032,-500.0,0.00026373,2]
[340934136,1730129455043,-500.0,0.00026373,2]
[340934137,1730129455053,-500.0,0.00026373,2]
[340934138,1730129455064,-210.05568038,0.00026373,2]
[340934139,1730129455075,-500.0,0.00026373,2]
[340934140,1730129455086,-151.0,0.00026422,2]
[340934141,1730129455098,-7458.94652043,0.0002649,2]
[340934142,1730129455109,-500.0,0.00026575,4]
[340934143,1730129455120,-500.0,0.00026575,4]
[340934144,1730129455131,-500.0,0.00026575,4]
[340934145,1730129455142,-1140.24,0.00026575,4]
[340934146,1730129455152,-500.0,0.00026575,4]
[340934147,1730129455162,-500.0,0.00026575,4]
[340934148,1730129455172,-500.0,0.00026575,4]
[340934149,1730129455182,-346.30061975,0.00026575,4]
[340934150,1730129455191,-749.87,0.00026575,4]
[340934151,1730129455202,-500.0,0.00026575,4]
[340934152,1730129455212,-500.0,0.00026575,4]
[340934153,1730129455222,-543.99,0.00026575,4]
[340934154,1730129455232,-200.0,0.00026575,4]
[340934155,1730129455241,-760.29,0.00026575,4]
[340934156,1730129455250,-500.0,0.00026575,4]
[340934157,1730129455260,-500.0,0.00026575,4]
[340934158,1730129455270,-1004.66,0.00026575,4]
[340934159,1730129455279,-500.0,0.00026575,4]
[340934160,1730129455289,-1133.69,0.00026575,4]
[340934161,1730129455299,-591.96,0.00026575,4]
[340934162,1730129455309,-711.78,0.00026575,4]
[340934163,1730129455318,-578.82,0.00026575,4]
[340934164,1730129455327,-500.0,0.00026575,4]
[340934165,1730129455336,-722.74,0.00026575,4]
[340934166,1730129455346,-955.43,0.00026575,4]
[340934167,1730129455359,-524.69,0.00026575,4]
[340934168,1730129455370,-500.0,0.00026575,4]
[340934169,1730129455379,-855.76,0.00026575,4]
[340934170,1730129455388,-890.47,0.00026575,4]
[340934171,1730129455400,-500.0,0.00026575,4]
[340934172,1730129455410,-566.57,0.00026575,4]
[340934173,1730129455420,-633.26,0.00026575,4]
[340934174,1730129455430,-1975.47,0.00026575,4]
[340934175,1730129455440,-500.0,0.00026575,4]
[340934176,1730129455450,-1713.77,0.00026575,4]
[340934177,1730129455459,-729.11,0.00026575,4]
[340934178,1730129455469,-500.0,0.00026575,4]
[340934179,1730129455481,-500.0,0.00026575,4]
[340934180,1730129455491,-963.09,0.00026575,4]
[340934181,1730129455501,-500.0,0.00026575,4]
[340934182,1730129455511,-500.0,0.00026575,4]
[340934183,1730129455522,-500.0,0.00026575,4]
[340934184,1730129455532,-500.0,0.00026575,4]
[340934185,1730129455541,-500.0,0.00026575,4]
[340934186,1730129455552,-500.0,0.00026575,4]
[340934187,1730129455561,-500.0,0.00026575,4]
[340934188,1730129455571,-608.05,0.00026575,4]
[340934189,1730129455580,-500.0,0.00026575,4]
[340934190,1730129455590,-823.3,0.00026575,4]
[340934191,1730129455599,-500.0,0.00026575,4]
[340934192,1730129455608,-500.0,0.00026575,4]
[340934193,1730129455620,-500.0,0.00026575,4]
[340934194,1730129455630,-755.88,0.00026575,4]
[340934195,1730129455639,-539.85,0.00026575,4]
[340934196,1730129455650,-500.0,0.00026575,4]
[340934197,1730129455664,-500.0,0.00026575,4]
[340934198,1730129455674,-626.47,0.00026575,4]
[340934199,1730129455683,-500.0,0.00026575,4]
[340934200,1730129455693,-500.0,0.00026575,4]
[340934201,1730129455702,-514.34,0.00026575,4]
[340934202,1730129455712,-500.0,0.00026575,4]
[340934203,1730129455722,-500.0,0.00026575,4]
[340934204,1730129455731,-500.0,0.00026575,4]
[340934205,1730129455740,-598.19,0.00026575,4]
[340934206,1730129455750,-500.0,0.00026575,4]
[340934207,1730129455759,-1067.13,0.00026575,4]
[340934208,1730129455769,-500.0,0.00026575,4]
[340934209,1730129455778,-843.82,0.00026575,4]
[340934210,1730129455788,-1143.48,0.00026575,4]
[340934211,1730129455797,-1025.09,0.00026575,4]
[340934212,1730129455807,-561.61,0.00026575,4]
[340934213,1730129455816,-527.41,0.00026575,4]
[340934214,1730129455827,-500.0,0.00026575,4]
[340934215,1730129455838,-500.0,0.00026575,4]
[340934216,1730129455848,-710.98,0.00026575,4]
[340934217,1730129455858,-500.0,0.00026575,4]
[340934218,1730129455868,-3382.1,0.00026575,4]
[340934219,1730129455878,-231.47478788,0.00026575,4]
[340934220,1730129455887,-500.0,0.00026575,4]
[340934221,1730129455897,-644.42,0.00026575,4]
[340934222,1730129455911,-1268.24,0.00026575,4]
[340934223,1730129455921,-500.0,0.00026575,4]
[340934224,1730129455931,-975.81,0.00026575,4]
[340934225,1730129455941,-500.0,0.00026575,4]
[340934226,1730129455952,-500.0,0.00026575,4]
[340934227,1730129455961,-1017.35,0.00026575,4]
[340934228,1730129455971,-620.42,0.00026575,4]
[340934229,1730129455984,-500.0,0.00026575,4]
[340934230,1730129455994,-576.34,0.00026575,4]
[340934231,1730129456004,-1089.8,0.00026575,4]
[340934232,1730129456133,-500.0,0.00026575,4]
[340934233,1730129456146,-500.0,0.00026575,4]
[340934234,1730129456156,-1006.91,0.00026575,4]
[340934235,1730129456166,-523.23,0.00026575,4]
[340934236,1730129456176,-500.0,0.00026575,4]
[340934237,1730129456185,-500.0,0.00026575,4]
[340934238,1730129456195,-4461.47,0.00026575,4]
[340934239,1730129456206,-500.0,0.00026575,4]
[340934240,1730129456216,-620.97,0.00026575,4]
[340934241,1730129456226,-500.0,0.00026575,4]
[340934242,1730129456236,-500.0,0.00026575,4]
[340934243,1730129456246,-1799.72,0.00026575,4]
[340934244,1730129456256,-530.25,0.00026575,4]
[340934245,1730129456266,-500.0,0.00026575,4]
[340934246,1730129456276,-878.91,0.00026575,4]
[340934247,1730129456286,-500.0,0.00026575,4]
[340934248,1730129456296,-742.22,0.00026575,4]
[340934249,1730129456306,-500.0,0.00026575,4]
[340934250,1730129456316,-500.0,0.00026575,4]
[340934251,1730129456326,-769.44,0.00026575,4]
[340934252,1730129456336,-500.0,0.00026575,4]
[340934253,1730129456346,-473.70055484,0.00026575,4]
[340934254,1730129456356,-500.0,0.00026575,4]
[340934255,1730129456367,-500.0,0.00026575,4]
[340934256,1730129456377,-624.33,0.00026575,4]
[340934257,1730129456386,-1927.27,0.00026575,4]
[340934258,1730129456396,-819.93,0.00026575,4]
[340934259,1730129456406,-1497.68,0.00026575,4]
[340934260,1730129456416,-500.0,0.00026575,4]
[340934261,1730129456425,-1026.37,0.00026575,4]
[340934262,1730129456435,-500.0,0.00026575,4]
[340934263,1730129456445,-2868.93,0.00026575,4]
[340934264,1730129456454,-761.76,0.00026575,4]
[340934265,1730129456465,-738.76,0.00026575,4]
[340934266,1730129456475,-683.67,0.00026575,4]
[340934267,1730129456485,-500.0,0.00026575,4]
[340934268,1730129456495,-786.95,0.00026575,4]
[340934269,1730129456506,-6316.7,0.00026575,4]
[340934270,1730129456517,-1284.43,0.00026575,4]
[340934271,1730129456527,-500.0,0.00026575,4]
[340934272,1730129456538,-650.23,0.00026575,4]
[340934273,1730129456550,-3145.16,0.00026575,4]
[340934274,1730129456561,-1227.62,0.00026575,4]
[340934275,1730129456571,-1884.49,0.00026575,4]
[340934276,1730129456580,-601.67,0.00026575,4]
[340934277,1730129456590,-1727.69,0.00026575,4]
[340934278,1730129456600,-500.0,0.00026575,4]
[340934279,1730129456610,-1046.1,0.00026575,4]
[340934280,1730129456621,-500.0,0.00026575,4]
[340934281,1730129456630,-1689.97,0.00026575,4]
[340934282,1730129456640,-778.9,0.00026575,4]
[340934283,1730129456649,-652.89,0.00026575,4]
[340934284,1730129456659,-1030.36,0.00026575,4]
[340934285,1730129456669,-1456.12,0.00026575,4]
[340934286,1730129456678,-1629.02,0.00026575,4]
[340934287,1730129456688,-500.0,0.00026575,4]
[340934288,1730129456697,-500.0,0.00026575,4]
[340934289,1730129456707,-500.0,0.00026575,4]
[340934290,1730129456718,-500.0,0.00026575,4]
[340934291,1730129456730,-1204.2,0.00026575,4]
[340934292,1730129456741,-1554.92,0.00026575,4]
[340934293,1730129456751,-507.55,0.00026575,4]
[340934294,1730129456761,-500.0,0.00026575,4]
[340934295,1730129456772,-500.0,0.00026575,4]
[340934296,1730129456782,-500.0,0.00026575,4]
[340934297,1730129456792,-925.28,0.00026575,4]
[340934298,1730129456802,-610.14,0.00026575,4]
[340934299,1730129456814,-1313.8,0.000266,14]
[340934300,1730129456826,-500.0,0.0002664,2]
[340934301,1730129456837,-500.0,0.0002664,2]
[340934302,1730129456848,-500.0,0.0002664,2]
[340934303,1730129456861,-172.96544947,0.0002664,2]
[340934304,1730129456874,-500.0,0.0002664,2]
[340934305,1730129456886,-210.04242315,0.0002664,2]
[340934306,1730129456897,-500.0,0.0002664,2]
[340934307,1730129456918,-500.0,0.0002664,2]
[340934308,1730129456928,-500.0,0.0002664,2]
[340934309,1730129456937,-1025.172425,0.00026681,2]
[340934310,1730129456949,-2269.241745,0.00026681,2]
[340934311,1730129456959,-151.0,0.00026711,2]
[340934312,1730129456969,-150.0,0.00026777,2]
[340934313,1730129456981,-150.0,0.00026793,2]
[340934314,1730129456997,-150.0,0.00026793,2]
[340934315,1730129457007,-858.9,0.000268,14]
[340934316,1730129457019,-500.0,0.00026849,4]
[340934317,1730129457029,-500.0,0.00026849,4]
[340934318,1730129457039,-500.0,0.00026849,4]
[340934319,1730129457050,-1140.24,0.00026849,4]
[340934320,1730129457061,-500.0,0.00026849,4]
[340934321,1730129457072,-500.0,0.00026849,4]
[340934322,1730129457083,-500.0,0.00026849,4]
[340934323,1730129457094,-749.87,0.00026849,4]
[340934324,1730129457105,-500.0,0.00026849,4]
[340934325,1730129457121,-500.0,0.00026849,4]
[340934326,1730129457145,-543.99,0.00026849,4]
[340934327,1730129457156,-200.0,0.00026849,4]
[340934328,1730129457165,-760.29,0.00026849,4]
[340934329,1730129457177,-500.0,0.00026849,4]
[340934330,1730129457187,-500.0,0.00026849,4]
[340934331,1730129457199,-1004.66,0.00026849,4]
[340934332,1730129457210,-500.0,0.00026849,4]
[340934333,1730129457222,-1133.69,0.00026849,4]
[340934334,1730129457236,-591.96,0.00026849,4]
[340934335,1730129457247,-711.78,0.00026849,4]
[340934336,1730129457258,-578.82,0.00026849,4]
[340934337,1730129457269,-500.0,0.00026849,4]
[340934338,1730129457284,-722.74,0.00026849,4]
[340934339,1730129457294,-955.43,0.00026849,4]
[340934340,1730129457305,-524.69,0.00026849,4]
[340934341,1730129457316,-500.0,0.00026849,4]
[340934342,1730129457328,-855.76,0.00026849,4]
[340934343,1730129457340,-890.47,0.00026849,4]
[340934344,1730129457352,-500.0,0.00026849,4]
[340934345,1730129457363,-566.57,0.00026849,4]
[340934346,1730129457377,-633.26,0.00026849,4]
[340934347,1730129457388,-1975.47,0.00026849,4]
[340934348,1730129457399,-500.0,0.00026849,4]
[340934349,1730129457409,-1713.77,0.00026849,4]
[340934350,1730129457419,-729.11,0.00026849,4]
[340934351,1730129457430,-500.0,0.00026849,4]
[340934352,1730129457441,-500.0,0.00026849,4]
[340934353,1730129457451,-963.09,0.00026849,4]
[340934354,1730129457461,-500.0,0.00026849,4]
[340934355,1730129457470,-500.0,0.00026849,4]
[340934356,1730129457481,-500.0,0.00026849,4]
[340934357,1730129457493,-500.0,0.00026849,4]
[340934358,1730129457503,-500.0,0.00026849,4]
[340934359,1730129457513,-500.0,0.00026849,4]
[340934360,1730129457523,-500.0,0.00026849,4]
[340934361,1730129457534,-608.05,0.00026849,4]
[340934362,1730129457544,-500.0,0.00026849,4]
[340934363,1730129457554,-823.3,0.00026849,4]
[340934364,1730129457565,-500.0,0.00026849,4]
[340934365,1730129457575,-500.0,0.00026849,4]
[340934366,1730129457586,-223.10192586,0.00026849,4]
[340934367,1730129457599,-755.88,0.00026849,4]
[340934368,1730129457612,-539.85,0.00026849,4]
[340934369,1730129457624,-500.0,0.00026849,4]
[340934370,1730129457635,-500.0,0.00026849,4]
[340934371,1730129457645,-626.47,0.00026849,4]
[340934372,1730129457655,-500.0,0.00026849,4]
[340934373,1730129457666,-500.0,0.00026849,4]
[340934374,1730129457677,-514.34,0.00026849,4]
[340934375,1730129457688,-500.0,0.00026849,4]
[340934376,1730129457698,-500.0,0.00026849,4]
[340934377,1730129457709,-500.0,0.00026849,4]
[340934378,1730129457719,-165.5212034,0.00026849,4]
[340934379,1730129740258,162.181007,0.00013973,2]
[340934386,1730130358179,166.87061489,0.00013,2]
[340934387,1730130379457,162.109593,0.00013973,2]
[340934388,1730130551172,-311.42279816,0.00021561,2]
[340934389,1730130551203,-184.901663,0.00021653,2]
[340934390,1730130551233,-162.109593,0.00021661,2]
[340934391,1730130551263,-184.901663,0.00021712,2]
[340934392,1730130551290,-184.901663,0.00021772,2]
[340934393,1730130551319,-150.04692229,0.00021791,2]
[340934394,1730130551349,-184.901663,0.00021831,2]
[340934395,1730130551378,-300.0,0.00021846,2]
[340934396,1730130551405,-300.0,0.00021846,2]
[340934397,1730130551435,-2026.94224387,0.00021847,2]
[340934417,1730130632704,-190.489477,0.00021505,2]